Cogmind - Beta 15 @@@ ROGUE MODE // 2025.06.13 @ 16:26:11 Player: H3-RMN Result: Destroyed by G-50 Soldier with Heavy Laser Performance ------------- Evolutions (4) 2000 Regions Visited (5) 1000 Robots Destroyed (95) 475 Value Destroyed (3672) 3672 Prototype IDs (18) 360 Alien Tech Used (0) 0 Bonus (1337) 1337 TOTAL SCORE: 8844 Bonus ------- High Alert Combat Kills 429 Follower Combat Kills 372 Registered with UFD 300 Met Optimus in HQ 500 Friendly Fire -264 Cogmind --------- Core Integrity 0/850 Matter 189/300 Energy 64/290 System Corruption 7% Temperature Warm (159) Movement Walking (190) Ox1 Location -6/Factory Parts ------- > --- POWER (2) -------- Improved Deuterium Engine > --- PROPULSION (4) --- Flexi-carbon Leg Armored Leg Armored Leg > --- UTILITY (5) ------ High-capacity Storage Unit > --- WEAPON (4) ------- Proton Cannon Heavy Machine Gun Heavy Machine Gun Heavy Machine Gun > --- INVENTORY (20) --- Carbon-fiber Leg Huge Storage Unit Energy Well (350) High-capacity Matter Pod (200) Gravity Neutralizer Advanced Sensor Array Advanced Signal Interpreter IFF Parser Authchip [Processor] Authchip [Weapon] High-powered Tractor Beam Long-range Missile Launcher CPS Tube (2) CPS Tube (2) Powered Hammer Scythe Heavy Pick Peak State ------------ > --- POWER ------------ Reinforced Deuterium Engine Reinforced Deuterium Engine > --- PROPULSION ------- Improved Titanium Leg Improved Titanium Leg Improved Titanium Leg Improved Titanium Leg Flexi-carbon Leg > --- UTILITY ---------- Improved Cooling System High-capacity Storage Unit Gravity Neutralizer Core Analyzer Improved Hacking Suite Rainbow Chip > --- WEAPON ----------- Plasma Rifle Heavy Plasma Cannon Heavy Machine Gun Magnetic Acceleration Cannon > --- INVENTORY -------- Coolant Injector Huge Storage Unit Energy Well High-capacity Matter Pod Advanced Sensor Array Advanced Signal Interpreter IFF Parser Improved Actuator Array Improved Light Armor Plating Layered Medium Armor Plating Medium Reflective Plating Authchip [Processor] Authchip [Weapon] High-powered Tractor Beam Long-range Missile Launcher CPS Tube CPS Tube Powered Hammer Scythe Heavy Pick [Rating: 89] Favorites ----------- Power Subdweller Power Source Engine Subdweller Power Source Power Core Light Nuclear Core Propulsion Aluminum Leg Leg Aluminum Leg Utility High-capacity Storage Unit Device Remote Shield Storage High-capacity Storage Unit Processor Core Analyzer Hackware Improved Hacking Suite Protection Improved Light Armor Plating Weapon Subdweller Beam Cannon Energy Gun Subdweller Laser Energy Cannon Subdweller Beam Cannon Ballistic Gun Subdweller Machine Gun Ballistic Cannon Magnetic Acceleration Cannon Launcher Rocket Launcher Special Weapon Multitool Impact Weapon Powered Hammer Slashing Weapon Ripper Piercing Weapon Heavy Pick Build | -11 -10 -10 -9 -9 -6 ------- Run | Yrd Mat Sub Rec Scr Fac Slots Evolved 8 | . . . . . 8 Power 1 | . . . . . 1 Propulsion 2 | . . . . . 2 Utility 3 | . . . . . 3 Weapon 2 | . . . . . 2 Parts Attached 107 | 7 4 8 7 7 74 Power 14 | 1 . 2 1 1 9 Engine 13 | 1 . 2 1 1 8 Core 1 | . . . . . 1 Reactor . | . . . . . . Propulsion 20 | 2 1 1 . 1 15 Treads . | . . . . . . Leg 20 | 2 1 1 . 1 15 Wheel . | . . . . . . Hover . | . . . . . . Flight . | . . . . . . Utility 33 | 2 3 2 4 2 20 Device 13 | 1 . 1 1 . 10 Storage 7 | 1 2 . 2 1 1 Processor 3 | . 1 . . . 2 Hackware 3 | . . . . 1 2 Protection 7 | . . 1 1 . 5 Artifact . | . . . . . . Weapon 40 | 2 . 3 2 3 30 Energy Gun 11 | 1 . 1 . . 9 Energy Cannon 6 | . . 2 . 1 3 Ballistic Gun 10 | 1 . . . 1 8 Ballistic Cannon 2 | . . . . 1 1 Launcher 3 | . . . . . 3 Special Weapon 2 | . . . 1 . 1 Impact Weapon 2 | . . . . . 2 Slashing Weapon 3 | . . . 1 . 2 Piercing Weapon 1 | . . . . . 1 Special Melee Weapon . | . . . . . . Unidentified Prototypes 3 | . . 1 . . 2 Corrupted Parts 1 | . . . . 1 . System Corruption 2 | . . . . 2 . Parts Lost 49 | . . 1 . 1 47 Power 7 | . . . . . 7 Propulsion 9 | . . 1 . . 8 Utility 13 | . . . . . 13 Weapon 20 | . . . . 1 19 Highest Loss Streak 11 | . . 1 . 1 11 To Critical Strikes . | . . . . . . Average Backups 16 | 1 8 13 16 17 18 Power . | . 1 1 1 . . Propulsion 1 | . 1 2 1 . . Utility 7 | . . 3 7 8 12 Weapon 5 | . 6 5 5 6 3 Tool/Special . | . . . . . . Unused Backups 31 | . 1 8 2 4 16 Power 1 | . . 1 . . . Propulsion 4 | . . . 1 1 2 Utility 12 | . . . . . 12 Weapon 11 | . 1 6 1 3 . Tool/Special 3 | . . 1 . . 2 Average Slot Usage (%) 96 | . 100 99 99 98 82 Engine 12 | . 14 13 14 13 9 Leg 26 | . 28 27 28 27 18 Device 10 | . 5 12 11 10 6 Storage 12 | . 14 14 14 14 5 Processor 2 | . 8 . . . 10 Hackware 2 | . . . . 3 5 Protection 1 | . . 1 2 . 2 Energy Gun 6 | . 14 14 11 . 3 Energy Cannon 6 | . . 11 11 2 5 Ballistic Gun 2 | . 14 2 . 1 6 Special Weapon 4 | . . . 2 10 . Slashing Weapon 5 | . . . 2 12 . Peak Build Rating 89 | 9 9 16 21 22 89 Average Rating 27 | 5 8 14 18 20 68 On Entrance 12 | . 9 8 16 21 21 Naked Turns . | . . . . . . Heaviest Build 102 | 14 28 38 64 59 102 Greatest Support 112 | 20 20 20 20 23 112 Greatest Overweight (x) 4 | . 1 1 3 4 4 Average Overweight (x) 1 | . . . 2 2 1 Largest Inventory Capacity 20 | 8 15 15 20 20 20 Average Capacity 18 | 7 8 14 19 20 20 Most Carried 20 | 3 10 15 20 20 20 Average Carried 17 | 1 8 13 18 19 19 Final Capacity 20 | 8 10 15 20 20 20 Final Carried 20 | 3 10 15 20 20 17 Class Distribution -------------------- 51% | Commander-Mutant 21% | Mutant 10% | Scavenger-Mutant 10% | Scavenger-Gunner Dominant Class ---------------- Mutant | -10/Materials Mutant | -10/Subcaves Commander-Mutant | -9/Recycling Commander-Mutant | -9/Scraptown Scavenger-Gunner | -6/Factory Resources | -11 -10 -10 -9 -9 -6 ----------- Run | Yrd Mat Sub Rec Scr Fac Matter Collected 2564 | 277 64 199 50 352 1622 Remotely 10 | . . . . . 10 Salvage Created 4886 | 131 130 231 130 . 4264 Parts 199 | 7 7 17 7 . 161 Haulers Intercepted 2 | . . . . . 2 Recyclers Shooed 7 | . . . . . 7 Parts Field Recycled . | . . . . . . Retrieved Matter . | . . . . . . Parts Self-Destructed 12 | . . 12 . . . Prevented . | . . . . . . Kills | -11 -10 -10 -9 -9 -6 ------- Run | Yrd Mat Sub Rec Scr Fac Combat Hostiles Destroyed 65 | . 3 6 1 . 55 Melee 6 | . . . . . 6 Guns 21 | . 3 5 1 . 12 Cannons 19 | . . 1 . . 18 AOE 14 | . . . . . 14 Classes Destroyed 18 | 2 1 4 1 . 10 Worker 8 | . . . . . 8 Builder 6 | . . . . . 6 Tunneler 2 | 2 . . . . . Hauler 2 | . . . . . 2 Recycler 10 | 1 . . 1 . 8 Swarmer 2 | . . 2 . . . Saboteur 1 | . . . . . 1 Grunt 34 | . 3 1 . . 30 Brawler 3 | . . . . . 3 Duelist 2 | . . . . . 2 Protector 1 | . . . . . 1 Sentry 5 | . . 1 . . 4 Specialist 4 | . . . . . 4 Hunter 8 | . . . 1 . 7 Programmer 3 | . . . . . 3 Behemoth 1 | . . . . . 1 Artisan 1 | . . 1 . . . Subdweller 3 | . . 2 1 . . Best Kill Streak 12 | 3 2 3 1 . 12 Combat Bots Only 8 | . 2 3 1 . 8 Max Kills in Single Turn 5 | 1 1 1 1 . 5 Gunslinging . | . . . . . . Exploded 3 | . . . . . 3 Melee 1 | . . . . . 1 Uniques/NPCs Destroyed . | . . . . . . Combat | -11 -10 -10 -9 -9 -6 -------- Run | Yrd Mat Sub Rec Scr Fac Hostile Shots Fired 582 | . 13 32 . . 537 Missed 163 | . 5 10 . . 148 Hits 419 | . 8 22 . . 389 Melee 4 | . . . . . 4 Projectile 415 | . 8 22 . . 385 AOE 3 | . . 1 . . 2 Critical Strikes 9 | . 1 . . . 8 Damage Taken 7471 | . 115 325 . 45 6986 Core 963 | . 13 96 . . 854 Absorbed by Shields 18 | . . . . . 18 Ignored by Resistances 79 | . . . . . 79 Regen/Repaired (Parts) 41 | . . . . . 41 Core Remaining (%) 78 | 100 . . . 56 . Volleys Fired 195 | 7 14 26 3 . 145 Largest 5 | 2 2 2 2 . 5 Hottest 248 | 70 70 140 140 . 248 Shots Fired 504 | 14 28 45 9 . 408 Gun 354 | 14 28 36 4 . 272 Cannon 136 | . . 9 5 . 122 Launcher 13 | . . . . . 13 Special 1 | . . . . . 1 Kinetic 224 | 7 14 11 . . 192 Thermal 200 | 7 14 34 9 . 136 Explosive 13 | . . . . . 13 Electromagnetic 66 | . . . . . 66 Robot Hit Streak 18 | 6 3 5 5 . 18 Robot Miss Streak 4 | 2 2 2 4 . 4 Penetration Max 1 | . . . . . 1 Secondary Targets 2 | . . . . . 2 Max Gunslinging Chain 1 | . . . . . 1 Shots Hit Robots 328 | 9 17 19 5 . 278 Core Hits 190 | 4 8 11 3 . 164 Critical Kills 3 | . . . . . 3 Critical Parts Destroyed 2 | . . . . . 2 Critical Strikes 11 | . 1 1 . . 9 Burn 5 | . 1 1 . . 3 Meltdown 3 | . . . . . 3 Destroy 1 | . . . . . 1 Corrupt 1 | . . . . . 1 Smash 1 | . . . . . 1 Melee Attacks 36 | . . . . . 36 Impact 19 | . . . . . 19 Slashing 2 | . . . . . 2 Piercing 15 | . . . . . 15 Sneak Attacks 4 | . . . . . 4 Combat Hostiles . | . . . . . . Follow-up Attacks 7 | . . . . . 7 Damage Inflicted 11398 | 106 166 307 117 . 10702 Guns 4263 | 106 166 252 62 . 3677 Cannons 2536 | . . 55 55 . 2426 Explosions 3472 | . . . . . 3472 Melee 1113 | . . . . . 1113 Ramming 14 | . . . . . 14 Kinetic 2771 | 30 78 60 . . 2603 Thermal 2834 | 76 88 247 117 . 2306 Explosive 3472 | . . . . . 3472 Electromagnetic 1194 | . . . . . 1194 Impact 705 | . . . . . 705 Slashing 63 | . . . . . 63 Piercing 345 | . . . . . 345 Highest Corruption 7 | . 2 2 2 2 7 Average Corruption 1 | . 2 2 2 2 1 Corruption Purged . | . . . . . . Corruption Blocked . | . . . . . . Effects 91 | . 1 41 31 6 12 Message Errors 19 | . . 6 9 1 3 Matter Fused 18 | . . 11 5 1 1 Heat Flow Errors 17 | . . 10 6 . 1 Energy Discharges 7 | . . 2 2 1 2 Parts Fused 4 | . 1 1 1 . 1 Data Loss (minor) 14 | . . 7 3 1 3 Data Loss (major) 3 | . . 1 1 1 . Misfires 5 | . . 2 3 . . Alerts 2 | . . . 1 1 . Weapon Failures 2 | . . 1 . . 1 Overload Shots . | . . . . . . Overflow Damage 345 | . . . . . 345 Projectiles 49 | . . . . . 49 Explosions 45 | . . . . . 45 Melee 251 | . . . . . 251 Knockbacks 8 | . . . . . 8 Impact 4 | . . . . . 4 Kinetic 3 | . . . . . 3 Secondary 1 | . . . . . 1 Self-Inflicted Damage 262 | . . . . . 262 Shots 4 | . . . . . 4 Rammed . | . . . . . . Targets Rammed 2 | . . . . . 2 Kicked 2 | . . . . . 2 Crushed . | . . . . . . Highest Temperature 351 | 130 143 226 273 . 351 Average Temperature 108 | 67 41 65 78 . 135 Received Heat Transfer 1923 | . 84 72 . . 1767 Effects 1 | . . . . . 1 Energy Bleed 1 | . . . . . 1 Siege Activations . | . . . . . . Martial Activations . | . . . . . . Shielding Activations . | . . . . . . Robots Disrupted . | . . . . . . Combat Hostiles . | . . . . . . Robots Corrupted 6 | . . . . . 6 Combat Hostiles 3 | . . . . . 3 Parts Fried 15 | . . . . . 15 Impact Corruptions 8 | . . . . . 8 Robots Melted 3 | . . . . . 3 Combat Hostiles 2 | . . . . . 2 Parts Melted 12 | . 2 . . . 10 Heat Transferred 4962 | 222 333 471 124 . 3812 Parts Sabotaged . | . . . . . . Parts Stolen . | . . . . . . Parts Stripped . | . . . . . . Power Chain Reactions . | . . . . . . Alert | -11 -10 -10 -9 -9 -6 ------- Run | Yrd Mat Sub Rec Scr Fac Maximum Alert Level 3 | . . . . . 3 Low Security (%) 63 | 100 100 . 100 . 25 Level 1 26 | . . . . . 53 Level 2 8 | . . . . . 16 Level 3 2 | . . . . . 4 Level 4 . | . . . . . . Level 5 . | . . . . . . High Security . | . . . . . . Max Security . | . . . . . . Peak Influence 1015 | 10 60 . 62 . 1015 Initial . | . . . . . . Average 155 | 1 8 . 10 . 304 Influence Increases 2868 | 15 153 212 412 . 2076 Destroy 0b10 Robot/C 1500 | . 60 140 140 . 1160 Destroy 0b10 Robot/NC 150 | 15 . . 5 . 130 Destroy Leader 246 | . 20 . . . 226 Allied During Kill 158 | . . 42 65 . 51 Successful Hack 85 | . 13 . 18 . 54 Select Force Hacks 210 | . . . 180 . 30 Disable Machine 210 | . . . . . 210 Destroy Structure 129 | . . . 4 . 125 Lose Combat Pursuer 180 | . 60 30 . . 90 Influence Decreases 1854 | 15 93 272 412 . 1062 Entered New Map 29 | . . 29 . . . Time Decay 1212 | 15 93 163 352 . 589 Lost Part 450 | . . . . . 450 Lost Ally 163 | . . 80 60 . 23 Squads Dispatched 16 | . 1 . . . 15 Investigation 7 | . . . . . 7 Extermination 4 | . . . . . 4 Reinforcement 3 | . 1 . . . 2 Assault 2 | . . . . . 2 Garrison . | . . . . . . Intercept . | . . . . . . Searches Triggered . | . . . . . . Construction Impeded 2 | . . . . . 2 Haulers Reinforced . | . . . . . . Active Scanning Responses . | . . . . . . Cargo Convoy Interrupts 1 | . . . . . 1 Stealth | -11 -10 -10 -9 -9 -6 --------- Run | Yrd Mat Sub Rec Scr Fac Distress Signals 4 | . 1 . . . 3 Communications Jammed . | . . . . . . Distress Signals . | . . . . . . Times Spotted 108 | . 8 21 2 . 77 Peak Tracking Total 12 | . 6 4 1 . 12 Tactical Retreats 7 | . 1 1 . . 5 Traps | -11 -10 -10 -9 -9 -6 ------- Run | Yrd Mat Sub Rec Scr Fac Traps Triggered 2 | . 1 1 . . . Indirectly . | . . . . . . Trap Hack Attempts . | . . . . . . Triggered . | . . . . . . Disarmed 4 | . . . . . 4 Reprogrammed . | . . . . . . Reused . | . . . . . . Traps Extracted . | . . . . . . Installed 1 | . . . . 1 . Triggered . | . . . . . . Most Traps Carried 1 | . . 1 1 1 . Machines | -11 -10 -10 -9 -9 -6 ---------- Run | Yrd Mat Sub Rec Scr Fac Machines Disabled 16 | . . 2 . . 14 Max in Single Turn 7 | . . 1 . . 7 Machines Repaired . | . . . . . . Machines Dismantled . | . . . . . . Machines Sabotaged . | . . . . . . Overloaded Fab Kills . | . . . . . . Hacking | -11 -10 -10 -9 -9 -6 --------- Run | Yrd Mat Sub Rec Scr Fac Machines Accessed 33 | . 3 2 12 5 11 Terminals 12 | . 2 . 6 . 4 Fabricators 1 | . . . . . 1 Repair Stations 2 | . 1 . . . 1 Recycling Units 9 | . . . 6 . 3 Scanalyzers 2 | . . . . . 2 Garrison Access . | . . . . . . Total Hacks 111 | . 7 4 38 31 31 Successful 78 | . 4 4 24 31 15 Failed 32 | . 2 . 14 . 16 Catastrophic 4 | . 1 . 1 . 2 Database Lockouts 1 | . 1 . . . . Manual 41 | . 5 . 21 . 15 Terminals 38 | . 5 . 21 . 12 Fabricators 5 | . . . . . 5 Repair Stations 4 | . 2 . . . 2 Recycling Units 25 | . . . 17 . 8 Scanalyzers 4 | . . . . . 4 Garrison Access . | . . . . . . Terminal Hacks 46 | . 3 4 3 31 5 Record 30 | . . 3 . 27 . Part Schematic 3 | . 2 . . . 1 Robot Analysis 6 | . 1 . 1 4 . Prototype ID Bank 2 | . . . 2 . . Open DSF 1 | . . . . . 1 Terminal Index 1 | . . . . . 1 Disarm Traps 1 | . . . . . 1 Hauler Manifests 1 | . . . . . 1 Proto ID Catalog 1 | . . 1 . . . Fabricator Hacks 1 | . . . . . 1 Network Status 1 | . . . . . 1 Repair Station Hacks 1 | . 1 . . . . Scan Component 1 | . 1 . . . . Recycling Unit Hacks 8 | . . . 7 . 1 Report Inventory 7 | . . . 6 . 1 Retrieve Components 1 | . . . 1 . . Scanalyzer 2 | . . . . . 2 Insert Component 1 | . . . . . 1 Analyze 1 | . . . . . 1 Garrison Access Hacks . | . . . . . . Unauthorized Hacks 20 | . . . 14 . 6 Terminals 8 | . . . 8 . . Botnet 2 | . . . 2 . . Skim 6 | . . . 6 . . Fabricators 3 | . . . . . 3 Report 1 | . . . . . 1 Liberate 1 | . . . . . 1 Haulers 1 | . . . . . 1 Repair Stations 1 | . . . . . 1 Patch 1 | . . . . . 1 Recycling Units 7 | . . . 6 . 1 Tunnel 6 | . . . 6 . . Fedlink 1 | . . . . . 1 Scanalyzers 1 | . . . . . 1 Extract 1 | . . . . . 1 Garrison Access . | . . . . . . Data Cores Recovered . | . . . . . . Used . | . . . . . . Hacking Detections 20 | . 3 . 8 . 9 Full Trace Events 5 | . . . 1 . 4 Feedback Events 1 | . . . . . 1 Corruption 1 | . . . . . 1 Feedback Blocked . | . . . . . . Robot Schematics Acquired . | . . . . . . Robots Built . | . . . . . . Authchips . | . . . . . . Time . | . . . . . . Total Robot Build Rating . | . . . . . . Part Schematics Acquired 9 | . 2 . . . 7 Parts Built . | . . . . . . Authchips . | . . . . . . Time . | . . . . . . Total Part Build Rating . | . . . . . . Parts Repaired . | . . . . . . Time . | . . . . . . Parts Recycled . | . . . . . . Recycled Matter . | . . . . . . Retrieved Matter . | . . . . . . Retrieved Components 9 | . . . 9 . . Parts Scanalyzed 1 | . . . . . 1 Part Schematics Acquired 1 | . . . . . 1 Parts Damaged . | . . . . . . Bothacking | -11 -10 -10 -9 -9 -6 ------------ Run | Yrd Mat Sub Rec Scr Fac Used RIF Installer . | . . . . . . Robots Hacked . | . . . . . . Non-combat . | . . . . . . Combat . | . . . . . . Robot Hacks Applied . | . . . . . . Relay Couplers Released . | . . . . . . Fabnet Peak Effective % . | . . . . . . Robots Rewired 12 | . . . 12 . . Allies Hacked . | . . . . . . Hacks Repelled . | . . . . . . Allies | -11 -10 -10 -9 -9 -6 -------- Run | Yrd Mat Sub Rec Scr Fac Total Allies 26 | . . 14 12 . . Largest Group 17 | . . 10 17 16 8 Highest-Rated Group 269 | . . 190 269 252 120 Highest-Rated Ally 27 | . . 19 27 27 21 Total Orders 3 | . . . 1 2 . STAY 1 | . . . . 1 . FOLLOW 1 | . . . . 1 . COLLECT 1 | . . . 1 . . Ally Attacks 99 | . . 36 39 . 24 Total Damage 1617 | . . 556 601 . 460 Kills 15 | . . 4 6 . 5 Allies Corrupted . | . . . . . . Allies Melted . | . . . . . . Intel | -11 -10 -10 -9 -9 -6 ------- Run | Yrd Mat Sub Rec Scr Fac Active Infowar (turns) 183 | 17 166 . . . . Terrain 183 | 17 166 . . . . Robot Analysis Total 6 | . 1 . 1 4 . Derelict Logs Recovered 7 | . . 2 . 5 . Drone Launches . | . . . . . . Drone Recoveries . | . . . . . . Exploration | -11 -10 -10 -9 -9 -6 ------------- Run | Yrd Mat Sub Rec Scr Fac Turns Passed 15490 | 97 412 3494 2503 6035 2949 Spaces Moved 6113 | 56 283 1721 694 2302 1057 Core 5 | 5 . . . . . Treads . | . . . . . . Legs 6108 | 51 283 1721 694 2302 1057 Wheels . | . . . . . . Hover . | . . . . . . Flight . | . . . . . . Fastest Speed 50 | 50 120 120 260 260 122 Average Speed 229 | 113 120 187 310 260 211 Slowest Speed 410 | 120 190 190 330 400 410 Overloaded Moves . | . . . . . . Propulsion Burnouts . | . . . . . . Robots Hopped . | . . . . . . Potential Cave-ins . | . . . . . . Cave-ins Triggered . | . . . . . . Exploration Rate (%) 56 | 4 42 96 88 86 25 Regions Visited 5 Branch Regions 3 Pre-discovered Areas 7 | . . . 7 . . Known Exits Taken 1 | . . . 1 . . Unknown Exits Taken 4 | 1 1 1 . 1 . Scrap Searched 20 | . . 11 . 9 . Spaces Dug 18 | . . . . . 18 Terrain Destroyed 178 | . . 1 3 . 174 Melee . | . . . . . . Projectile 21 | . . 1 3 . 17 AOE 157 | . . . . . 157 Terrain Rammed . | . . . . . . Walls Destroyed . | . . . . . . Machines Disabled . | . . . . . . Actions | -11 -10 -10 -9 -9 -6 --------- Run | Yrd Mat Sub Rec Scr Fac Total 7183 | 73 329 1946 1041 2353 1441 Wait 378 | 1 16 152 145 17 47 Move 6108 | 55 282 1720 693 2301 1057 Hop . | . . . . . . Pick Up 84 | 3 8 18 9 10 36 Fast Attach 55 | 7 1 3 . 8 36 Attach 34 | . . 2 3 . 29 Detach 5 | . . 1 . . 4 Swap 47 | . 4 6 4 4 29 Drop 71 | . 4 18 6 12 31 Fire 195 | 7 14 26 3 . 145 Melee 25 | . . . . . 25 Ram . | . . . . . . Kick 2 | . . . . . 2 Crush . | . . . . . . Escape Stasis . | . . . . . . Rewire 178 | . . . 178 . . Trap 1 | . . . . 1 . Miscellaneous . | . . . . . . Route ------- -11/Scrapyard -10/Materials (discovered 2 exits: [*Mat] / *Sub) -10/Subcaves (discovered 3 exits: [*Mat x2] / *Rec) -9/Recycling (discovered 2 exits: *Fac / *Scr) -9/Scraptown (discovered 2 exits: *Fac x2) -6/Factory (discovered 1 exit: Ext) History --------- Turn | Location | Event 3 | -11/Scrapyard | Discovered new exit (range 16) 98 | -11/Scrapyard | Entered Materials 130 | -10/Materials | Central database locked down 297 | -10/Materials | Discovered new exit (range 5) 304 | -10/Materials | Build established: Mutant 503 | -10/Materials | Discovered new exit (range 6) 510 | -10/Materials | Entered Subcaves 865 | -10/Subcaves | Learned Materials emergency access door positions 991 | -10/Subcaves | Visited triangular shrine 1003 | -10/Subcaves | Found Prototype Device 1003 | -10/Subcaves | Identified V3-11A's Pendant 1008 | -10/Subcaves | Befriended Subdweller 1236 | -10/Subcaves | Disturbed a concealed Subdweller 1238 | -10/Subcaves | Befriended Subdweller 1256 | -10/Subcaves | Disturbed a concealed Subdweller 1258 | -10/Subcaves | Befriended Subdweller 1518 | -10/Subcaves | Learned Materials interactive machine intel 1572 | -10/Subcaves | Visited 4L-MR0's lab 1592 | -10/Subcaves | Found Rainbow Chip 1762 | -10/Subcaves | Discovered new exit (range 4) 1763 | -10/Subcaves | Befriended Subdweller 1763 | -10/Subcaves | Befriended Subdweller 1888 | -10/Subcaves | Befriended Subdweller 2023 | -10/Subcaves | Befriended Subdweller 2023 | -10/Subcaves | Befriended Subdweller 2073 | -10/Subcaves | Befriended Subdweller 2073 | -10/Subcaves | Befriended Subdweller 2283 | -10/Subcaves | Discovered new exit (range 16) 2441 | -10/Subcaves | Visited Clippyterm 2446 | -10/Subcaves | Learned Factory trap positions 2500 | -10/Subcaves | Disturbed a concealed Subdweller 2609 | -10/Subcaves | Shifting Twisted Machinery released Multitool 2633 | -10/Subcaves | Befriended Subdweller 2638 | -10/Subcaves | Befriended Subdweller 2646 | -10/Subcaves | Shifting Twisted Machinery released Sub. Monowheel 2683 | -10/Subcaves | Befriended Subdweller 2688 | -10/Subcaves | Befriended Subdweller 3270 | -10/Subcaves | Discovered new exit (range 9) 3344 | -10/Subcaves | Shifting Twisted Machinery released Scrap Shield 3415 | -10/Subcaves | Shifting Twisted Machinery released Riot Gun 3677 | -10/Subcaves | Build established: Scavenger-Mutant 4004 | -10/Subcaves | Entered Recycling 4004 | -9/Recycling | Accompanied by 10 allies 4974 | -9/Recycling | Build established: Commander-Mutant 5658 | -9/Recycling | Learned Storage emergency access door positions 5699 | -9/Recycling | Identified exit to Factory 5728 | -9/Recycling | Learned location of 3 exits from Materials 5748 | -9/Recycling | Learned Materials trap positions 5815 | -9/Recycling | Identified exit to Scraptown 6135 | -9/Recycling | Scanned before Scraplab entrance 6427 | -9/Recycling | Entered Scraplab 6507 | -9/Recycling | Entered Scraptown 6507 | -9/Scraptown | Accompanied by 16 allies 6507 | -9/Scraptown | System corruption cleaned by C-Scrubber 6848 | -9/Scraptown | Visited Fellowship of the Rings 6869 | -9/Scraptown | Visited Shadow of the Wyrm 6910 | -9/Scraptown | Visited Assassins FH 6962 | -9/Scraptown | Heard Great Nut preacher, LISTEN AND RECITE! 6970 | -9/Scraptown | Visited Bundlers 7079 | -9/Scraptown | Visited Cyclists 7209 | -9/Scraptown | Delivered V3-11A's Pendant to T0-NE2 in exchange for information 7498 | -9/Scraptown | Scanned Subdweller tech in exchange for log data 7506 | -9/Scraptown | Learned location of 1 exit from Lower Caves 7514 | -9/Scraptown | Learned Factory stockpile data 7516 | -9/Scraptown | Learned Research security intel 7553 | -9/Scraptown | Discovered new exit (range 11) 7893 | -9/Scraptown | Visited Awakened 8106 | -9/Scraptown | Visited Comm Corps 8187 | -9/Scraptown | Visited UFD Registry 8187 | -9/Scraptown | Registered with UFD as "Thermobucket" 8366 | -9/Scraptown | Guru changed UFD alias to "Dualpod" 8639 | -9/Scraptown | Visited Analyses Database 8709 | -9/Scraptown | Visited DA-N13 Charitable Foundation 8720 | -9/Scraptown | Found DCF Scrap (28 items) 8816 | -9/Scraptown | Visited Science Testing Area 8886 | -9/Scraptown | Delivered Scrap Shield to a Scientist 8982 | -9/Scraptown | Visited Supply Room 9016 | -9/Scraptown | Visited Scrap Suit Storage 9047 | -9/Scraptown | Visited Scrapoid Research Area 9099 | -9/Scraptown | Visited Junk Repository 9167 | -9/Scraptown | Visited Chapter 10 9248 | -9/Scraptown | Visited Abandonware Association 9276 | -9/Scraptown | Learned abandonware demo "REPAIR.EXE" 9276 | -9/Scraptown | Learned abandonware demo "ERRANTS.EXE" 9469 | -9/Scraptown | Entered Cyclist Reading Room 11213 | -9/Scraptown | Warned about trapping Scraptown 11422 | -9/Scraptown | System corruption cleaned by C-Scrubber 11924 | -9/Scraptown | Found Scrap Suit 12391 | -9/Scraptown | Met Optimus 12391 | -9/Scraptown | Accepted into 0bPrime 12534 | -9/Scraptown | Discovered new exit (range 3) 12542 | -9/Scraptown | Entered Factory 12542 | -6/Factory | Accompanied by 8 allies 12542 | -6/Factory | Evolved 8 slots: Power x1, Propulsion x2, Utility x3, Weapon x2 12543 | -6/Factory | Identified exit to Extension 12544 | -6/Factory | Loaded intel: 91 trap records 12583 | -6/Factory | Attached Rainbow Chip, gained temporary slots: Power, Propulsion, Utility, Weapon 12857 | -6/Factory | Build established: Commander-Gunner 13184 | -6/Factory | Build established: Scavenger-Gunner 13244 | -6/Factory | Cargo convoy interrupted 13291 | -6/Factory | Lost 7 allies 13294 | -6/Factory | Destroyed 8 combat bots 13323 | -6/Factory | Lost 4 parts (2u2w) 13769 | -6/Factory | Lost 10 parts (3p1n6w) 13905 | -6/Factory | Spotted B-75 Beast 13970 | -6/Factory | Core integrity fell below 50% 13986 | -6/Factory | Destroyed B-75 Beast 14015 | -6/Factory | Lost 11 parts (1p4n2u4w) 14944 | -6/Factory | Loaded intel: 8 recycling unit locations 14992 | -6/Factory | First assault squad dispatched 15026 | -6/Factory | Lost 4 parts (2u2w) 15296 | -6/Factory | Build established: Scavenger-Gladiator 15355 | -6/Factory | Core integrity fell below 20% 15389 | -6/Factory | Lost 4 parts (4u) 15491 | -6/Factory | Destroyed by G-50 Soldier with Heavy Laser Last Messages --------------- 15478_ Penetrated by Slug. 15480_ U-05 Engineer lays Concrete. 15480_ Penetrated by Slug. 15481_ U-05 Engineer lays Concrete. 15481_ K-01 Serf collects debris. 15481_ Destroyed Phase Shifter. 15481_ U-05 Engineer builds a Wall. 15481_ H-66 Slayer misfires. 15482_ U-05 Engineer lays Concrete. 15484_ Penetrated by Slug. 15484_ Adv. Heat Sink destroyed. 15484_ K-01 Serf collects debris. 15485_ Penetrated by Slug. 15486_ H-66 Slayer system terminally corrupted. 15486_ Targeting Computer fried. 15486_ U-05 Engineer builds a Wall. 15488_ K-01 Serf collects debris. 15488_ Penetrated by Slug. 15491_ U-05 Engineer builds a Wall. 15491_ Penetrated by Slug. Map ----- +----------------------------------------------------+ | ???????????????????????? ?# =!%+ % | | ???????????????????????? ?# # % | | ???????????????????????? ?# %*# | | ???????????????????????? ?# # | | ????????????????????????? ?## # % | | ?????????????????????????????# " + | | ?????????????????????????????##" # | | ??????????????????????????????##########""### | | ?? ?????????????????????????? + | | ?#== ?????????????????????????? ############## | | ?#= ????????????????????????? ?????????????? | | ?# ?? ??????????????????????? ??????????????? | | ?# ?? ?????????????????? ??? ???????????????? | | ?# ""? ""???????????????? ?????????????????????? | | ?# """ """??????????????? ?????????????????????? | | ?# """ """? ? ??????????? ?????????????????????? | | ?# ?A??????? ?????????????????????? | | ?# """ """ ?????????? ?????????????????????? | | ?# """ """ #??????????# #????????????????????? | | ## """ """ #??????????#%#????????????????????? | | #??????????# #????????????????????? | | """ #??????????# #????????????????????? | | ! !! """ #??????????# #????????????????????? | | ! """ #??????????#h#????????????????????? | | #????????##[%###??????????????????? | | ##########@ [ #??????????????????? | | i= ########???????????? | | ### !=%* g ????? | | #?# =[=%%! ########??????????? | | ###+##/##############%=== #?????????????????? | | # #???##!##%!k#=#?????????????????? | | +## # """" """ #??## #%%u# #?????????????????? | | ??# # """" Y" #??# ###=%%# #?????????????????? | | ??# # """" """ #??# ### ###?????????????????? | | ??# # """" #########% ###?????????????????? | | ??+^# + %# #?????????????????? | | ??? # """" """" ######### ###?????????????????? | | ??? # """" """" #??# ##??????????????????? | | ??? # """" """" #??## # ??????????????????? | | ????# """" """" #???## # ??????????????????? | | ??????? #????## % # ?????????????????? | | ??????? !#?????? #%% # ?????????????????? | | ??????############????? # #????????????????? | | ??????????????????????? ????????????????? | | ???????????????????????? ?????????????????? | | ????????????????????????? ??????????????????? | | ????????????????????????? ?????????????????? | | ????????????????????????? ????????????????? | | ???????????????????A?????#######?????????????????? | | ?????????????????????????????????????????????????? | +----------------------------------------------------+ Best States ------------- Heat Dissipation 91 Coolant Potential 65 Energy Generation 42 Energy Capacity 480 Matter Stores 300 Matter Capacity 300 Sight Range 16 Terrain Scan Range 16 Terrain Scan Density 10 Additional Mass Support 12 Armor Coverage 450 Resistance: KI 10 Resistance: TH 15 Melee Speed Boost 20 Evasion (%) 55 Targeting Accuracy 5 Core Analysis 6 Offensive Hacking 12 Defensive Hacking 11 Authchip Count 3 Item Schematics ----------------- Hcp. Storage Unit | -10/Materials | Hacked Huge Storage Unit | -10/Materials | Hacked Micro-nuke Launcher | -6/Factory | Hacked CPS Tube | -6/Factory | Scanalyzed Force Field | -6/Factory | Extracted Imp. Proton Missile Launcher | -6/Factory | Extracted Hacking Suite | -6/Factory | Extracted Power Amplifier | -6/Factory | Extracted Adv. Terrain Scanner | -6/Factory | Extracted Robot Schematics ------------------ None Fabricated ------------ Nothing Repaired ---------- Nothing Alien Tech Used ----------------- None Achievements -------------- None Challenges ------------ None Game ------ Seed HardlightFrostReconstructor Manual? 0 Play Time 01:22:24 Cumulative 742.8 hours Start 2025.06.13 @ 14:56:52 End 2025.06.13 @ 16:26:11 Sessions 1 Manual Loads 0 Difficulty Rogue Special Mode None Game No. 280 Rogue 276 Adventurer 4 Explorer 0 Win Type - Total 12 Types 7/1/1/1/0/1/0/0/0/1 Lore% 94 Gallery% 89 Achievement% 87 Wizard Run 0 Options --------- Layout 0 ASCII 0 Keyboard 0 Movement Numpad Keybinds 0 Fullscreen 2 Font 18/CogNarrow Map View 76x50 Zoom Use 0% Tactical HUD 1 Map Filters SHIFT_HUE(110) Filters SHIFT_HUE(250) Steam 1 RUN: 00856034-d9ff-483a-b7aa-f884df3fe6f5